[Event "Czech Open-GM 2022"]
[Site "Pardubice"]
[Date "2022.07.28"]
[Round "7.20"]
[White "Skytte, Rasmus"]
[Black "Goroshkov, Maksym"]
[Result "1/2-1/2"]
[ECO "C51"]
[WhiteElo "2349"]
[BlackElo "2240"]
[Annotator "TA"]
[PlyCount "30"]
[EventDate "2022.07.22"]
[EventType "swiss"]
[EventCountry "CZE"]
[SourceTitle "playchess.com"]
[Source "ChessBase"]
[SourceQuality "1"]
[TimeControl "40/5400+30:1800+30"]

{[%evp 10,30,0,-3,-7,0,0,-72,-59,-70,-60,-81,-90,-95,-68,-75,-45,-46,-37,-52,-27,-59,-54]} 1. e4 {[%emt 0:00:09]} e5 {[%emt 0:00:31]} 2. Nf3 {[%emt 0:00:07]} Nc6 {[%emt 0:00:07]} 3. Bc4 {[%emt 0:00:07]} Bc5 {[%emt 0:00:11]} 4. b4 {[%emt 0:01:35]} Bxb4 {[%emt 0:01:37]} 5. c3 {[%emt 0:00:09]} Bd6 {[%emt 0:02:55]} 6. d4 {[%emt 0:05:12]} Nf6 {[%emt 0:03:59][%cal Bg8f6,Bf6e4,Be4g5,Bg5f3][%mdl 32] C51: Evans Gambit: Declined and Accepted without 5...Ba5.} 7. O-O {[%emt 0:01:07]} O-O {[%emt 0:03:01]} (7... Nxe4 8. dxe5 Nxe5 9. Re1 Nxc4 10. Rxe4+ Be7 11. Rxc4 $16) 8. Bg5 {[%emt 0:04:45]} (8. Re1 $11) 8... h6 {[%emt 0:04:57] Black is better.} 9. Bh4 {[%emt 0:00:54]} Be7 $1 {[%emt 0:01:09]} 10. dxe5 {[%emt 0:06:28]} Nxe4 {[%emt 0:00:44]} 11. Bxe7 {[%emt 0:01:22]} Qxe7 {[%emt 0:00:49]} 12. Re1 {[%emt 0:02:02] [#]} Ng5 $146 {[%emt 0:04:12] ...Nxf3+ is the strong threat.} ({Don't take} 12... Nxf2 13. Qd5 $14) ({Predecessor:} 12... Nxf2 13. Qd5 Ng4 14. h3 Ngxe5 15. Nxe5 Nxe5 16. Rxe5 Qf6 17. Rf5 Qe6 18. Nd2 d6 19. Qxe6 fxe6 20. Rxf8+ Kxf8 {1-0 (47) Barrientos Chavarriaga,S (2190)-Diaz Villagran,R (2252) Villa Giardino 2002}) 13. Nbd2 {[%emt 0:02:16]} Nxf3+ {[%emt 0:02:32]} 14. Nxf3 {[%emt 0:02:07]} Qc5 {[%emt 0:00:52]} 15. Qa4 {[%emt 0:07:33]} d5 {[%emt 0:08:43] Weighted Error Value: White=0.17 (very precise) /Black=0.06 (flawless)} 1/2-1/2

[Event "Czech Open-GM 2022"]
[Site "Pardubice"]
[Date "2022.07.28"]
[Round "7.21"]
[White "Farkas, Gabor"]
[Black "Gloser, David"]
[Result "1/2-1/2"]
[ECO "D33"]
[WhiteElo "2335"]
[BlackElo "2221"]
[Annotator "TA"]
[PlyCount "116"]
[EventDate "2022.07.22"]
[EventType "swiss"]
[EventCountry "CZE"]
[SourceTitle "playchess.com"]
[Source "ChessBase"]
[SourceQuality "1"]
[TimeControl "40/5400+30:1800+30"]

{[%evp 15,116,23,32,0,18,0,23,0,11,13,0,11,32,44,47,24,30,14,31,24,35,22,77,74,75,78,79,85,84,48,81,83,95,97,125,125,125,125,130,141,150,150,150,154,145,52,129,0,155,145,139,99,106,92,92,92,92,86,87,87,87,84,97,106,112,89,120,82,89,0,83,0,92,83,97,95,119,112,121,82,104,39,22,6,12,0,0,0,0,0,0,0,0,0,0,-41,-28,-436,-12,-16,0,0,0]} 1. d4 {[%emt 0:00:04]} d5 {[%emt 0:00:10]} 2. c4 {[%emt 0:00:11]} e6 {[%emt 0:00:04]} 3. Nc3 {[%emt 0:00:33]} c5 {[%emt 0:00:05]} 4. cxd5 {[%emt 0:00:05]} exd5 {[%emt 0:00:05]} 5. Nf3 {[%emt 0:00:54]} Nc6 {[%emt 0:00:07]} 6. g3 {[%emt 0:02:43]} Nf6 {[%emt 0:00:09]} 7. Bg2 {[%emt 0:00:53]} cxd4 {[%emt 0:00:08] is the new trend.} 8. Nxd4 {[%emt 0:01:17]} Bc5 {[%emt 0:00:06]} 9. e3 {[%emt 0:05:16] D33: Tarrasch Defence: 6 g3 sidelines.} (9. Nb3 $5 {[%cal Rb3c5]} Bb6 10. O-O $11 (10. Bxd5 Nb4 $11) (10. Nxd5 Nxd5 11. Qxd5 Qxd5 $11)) 9... O-O {[%emt 0:04:50]} 10. O-O {[%emt 0:02:19]} Bb6 {[%emt 0:08:47]} 11. b3 {[%emt 0:09:32] [#] White has an edge.} Bg4 $146 {[%emt 0:03:33]} ({Predecessor:} 11... Re8 12. Bb2 Bg4 13. Qd3 Nxd4 14. exd4 Rc8 15. Rfe1 Qd7 16. Rxe8+ Rxe8 17. Na4 Ba5 {1-0 (35) Skatchkov,V (2299)-Kiseljova,M (2031) Chess.com INT 2021}) 12. Nxc6 {[%emt 0:06:28]} bxc6 {[%emt 0:00:05]} 13. Qc2 {[%emt 0:02:35]} h5 {[%emt 0:05:13][%cal Oh5h4]} 14. Na4 {[%emt 0:03:15]} Rc8 {[%emt 0:02:16]} 15. h3 {[%emt 0:04:51]} Be6 {[%emt 0:02:17][%cal Of6e4]} 16. Nc5 {[%emt 0:02:15]} Bxc5 {[%emt 0:02:57]} 17. Qxc5 {[%emt 0:04:21]} Qd7 {[%emt 0:02:54]} 18. Kh2 {[%emt 0:00:44]} h4 {[%emt 0:01:41]} (18... Bf5 $11 {keeps the balance.}) 19. Bb2 $16 {[%emt 0:00:46]} Ne4 {[%emt 0:06:02]} 20. Bxe4 {[%emt 0:01:04]} dxe4 {[%emt 0:00:10]} (20... hxg3+ $2 21. fxg3 dxe4 22. Bxg7 $1 {[%mdl 512]} Qd2+ 23. Kg1 $18) 21. gxh4 {[%emt 0:14:56][%cal Ob2g7] Hoping for Bxg7!} f6 {[%emt 0:06:51]} 22. Rad1 {[%emt 0:01:46]} Bd5 {[%emt 0:02:46]} 23. Rg1 {[%emt 0:00:26][%cal Bf1g1,Bg1g4,Bg4f4][%mdl 32]} Rf7 {[%emt 0:06:54]} 24. Rg4 {[%emt 0:03:44]} Qe6 {[%emt 0:07:53]} 25. Rdg1 {[%emt 0:04:20]} Kh7 {[%emt 0:00:35]} 26. Rf4 {[%emt 0:04:33]} Rh8 {[%emt 0:02:57]} 27. Qd4 {[%emt 0:01:14]} Rc8 {[%emt 0:02:51]} 28. Qd1 {[%emt 0:03:49]} Rh8 {[%emt 0:03:04]} 29. Rg3 {[%emt 0:00:20]} Kg8 {[%emt 0:02:55]} 30. Qd4 {[%emt 0:01:10]} (30. Rg6 $1 $16) 30... Kh7 {[%emt 0:03:20]} (30... Rh6 $1 $14) 31. Qd1 {[%emt 0:00:38]} Kg8 {[%emt 0:00:05]} 32. Rg6 $1 {[%emt 0:01:31] aiming for Bxf6.} Kf8 {[%emt 0:02:24]} 33. Qd2 {[%emt 0:03:20]} Qd6 {[%emt 0:04:19] Prevents Qb4.} 34. Qa5 {[%emt 0:01:43] Threatens to win with Ba3.} Ke8 {[%emt 0:03:25]} 35. Kg2 {[%emt 0:02:59]} Qc7 {[%emt 0:02:23]} 36. Qc5 {[%emt 0:01:10]} Kd7 {[%emt 0:01:21]} 37. Bd4 {[%emt 0:03:10]} Kc8 {[%emt 0:01:10]} 38. Kg1 {[%emt 0:01:01]} Qb7 {[%emt 0:04:32]} 39. Rfg4 Rh7 40. Kh2 {[%emt 0:06:24]} Qd7 {[%emt 0:05:08]} 41. Rf4 {[%emt 0:03:47]} Qc7 {[%emt 0:04:36]} 42. Kg2 {[%emt 0:03:50]} (42. Rg3 $16) 42... Qb7 {[%emt 0:02:47]} (42... Rh8 $1 $11) 43. Kg1 {[%emt 0:06:13]} (43. Rg3 $16) 43... Qd7 {[%emt 0:08:01]} (43... Rh8 $1 $11 {remains equal.}) 44. Rg3 {[%emt 0:03:40]} Qb7 {[%emt 0:02:52]} 45. f3 {[%emt 0:01:53]} f5 {[%emt 0:00:29]} 46. fxe4 {[%emt 0:00:54]} Bxe4 {[%emt 0:02:30]} 47. Rg6 {[%emt 0:00:32][%cal Of4e4] Black must now prevent Rxe4!} Rh6 {[%emt 0:00:03]} 48. Rxh6 {[%emt 0:00:40] Active counter play!} (48. Rg5 $16) 48... gxh6 $14 {[%emt 0:01:41]} 49. Qe5 {[%emt 0:02:45]} Qd7 {[%emt 0:00:36] Against Qe8+} 50. Rf1 {[%emt 0:00:27]} Rf8 {[%emt 0:00:17][%cal Bf7f8,Bf8g8,Bg8g2,Bg2a2][%mdl 32]} 51. Rc1 Rg8+ 52. Kf1 {[%emt 0:02:02]} Bd5 {[%emt 0:01:36]} 53. Qf4 {[%emt 0:02:19]} Rg2 {[%emt 0:03:01]} 54. b4 {[%emt 0:03:54][%cal Bb3b4,Bb4b5][%mdl 32]} Rxa2 {[%emt 0:01:38]} 55. b5 {[%emt 0:00:23]} (55. Qxh6 $2 f4 56. Qh8+ Kb7 $19) 55... Qe6 {[%emt 0:01:17] ( -> ...Qg6)} 56. Be5 $2 {[%emt 0:04:16][%mdl 8192] [#]} ({Much weaker is} 56. b6 Bc4+ 57. Ke1 axb6 58. Bxb6 Re2+ 59. Kf1 Rc2+ 60. Ke1 Rxc1+ $17) (56. Ke1 $11 {and White has nothing to worry.}) 56... Qg6 $2 {[%emt 0:01:47]} (56... Be4 $1 $19 {Strongly threatening ...Qg8.} 57. Qxe4 fxe4 58. Rxc6+ {[#]} Qxc6 $3 {[%mdl 512]} 59. bxc6 a5) 57. Qg3 $11 {[%emt 0:00:18] Dancing on a razor blade.} Qxg3 {[%emt 0:00:50]} 58. Bxg3 {[%emt 0:00:02]} Kd7 {[%emt 0:01:54] White used his chance.  Weighted Error Value: White=0.27 (precise) /Black=0.32} 1/2-1/2

[Event "Czech Open-GM 2022"]
[Site "Pardubice"]
[Date "2022.07.28"]
[Round "7.22"]
[White "Swicarz, Maciej"]
[Black "Elmi, Saad Abobaker"]
[Result "1/2-1/2"]
[ECO "B53"]
[WhiteElo "2335"]
[BlackElo "2123"]
[Annotator "TA"]
[PlyCount "67"]
[EventDate "2022.07.22"]
[EventType "swiss"]
[EventCountry "CZE"]
[SourceTitle "playchess.com"]
[Source "ChessBase"]
[SourceQuality "1"]
[TimeControl "40/5400+30:1800+30"]

{[%evp 9,67,0,1,19,15,7,10,0,8,-3,10,7,1,3,19,18,8,10,37,34,33,37,34,0,35,29,33,0,46,0,29,10,17,0,0,-33,0,-33,-9,-8,-14,-61,-75,-82,-75,-89,-68,-71,-45,-51,-3,-43,-47,-98,0,0,0,-97,0,0]} 1. e4 {[%emt 0:00:04]} c5 {[%emt 0:00:27]} 2. Nf3 {[%emt 0:00:25]} d6 {[%emt 0:00:23]} 3. d4 {[%emt 0:00:04]} cxd4 {[%emt 0:00:15]} 4. Qxd4 {[%emt 0:00:40]} Nf6 {[%emt 0:00:49]} 5. h3 {[%emt 0:00:45]} Nc6 {[%emt 0:02:34]} 6. Qe3 {[%emt 0:00:04] B53: Sicilian: 2...d6: Lines with Qxd4.} g6 {[%emt 0:00:29]} 7. Be2 {[%emt 0:00:50]} Bg7 {[%emt 0:00:18]} 8. O-O {[%emt 0:00:03]} O-O {[%emt 0:00:13]} 9. Rd1 {[%emt 0:00:05]} Nd7 {[%emt 0:00:34]} 10. Nc3 {[%emt 0:07:14]} b6 {[%emt 0:01:09]} 11. Nd5 {[%emt 0:06:34]} Bb7 {[%emt 0:01:15]} 12. Rb1 $1 {[%emt 0:05:16]} Rc8 {[%emt 0:04:15]} 13. c4 $1 {[%emt 0:02:29]} Nce5 {[%emt 0:20:40]} 14. b3 {[%emt 0:02:47]} Nxf3+ {[%emt 0:00:17]} 15. Bxf3 {[%emt 0:00:07]} a6 {[%emt 0:08:27] [#]} 16. a4 $146 {[%emt 0:06:36][%cal Oe4e5]} ({Predecessor:} 16. Bg4 e6 17. Nc3 Qc7 18. Ba3 Nc5 19. Bf3 Rfd8 20. Rbc1 Qb8 21. Rd2 Ba8 22. Ne2 {½-½ (48) Grabinsky,A (2421)-Kevlishvili,R (2491) Dulles 2022}) 16... Bc6 {[%emt 0:03:59]} (16... e6 $5 {[%cal Re6d5]} 17. Nf4 Qc7 $11) 17. Nb4 {[%emt 0:11:35]} Bb7 {[%emt 0:02:34]} 18. Nd5 {[%emt 0:00:02]} Bc6 {[%emt 0:00:35]} 19. Nb4 {[%emt 0:00:03]} Bb7 $1 {[%emt 0:00:18]} 20. Bd2 {[%emt 0:00:09][%cal Oe4e5]} Nc5 {[%emt 0:02:06]} 21. Nd5 {[%emt 0:03:50][%cal Bb4d5,Bd5c3,Bc3e2,Be2d4][%mdl 32]} e6 {[%emt 0:00:52]} 22. Nc3 {[%emt 0:01:51]} Qc7 {[%emt 0:02:42]} 23. Rdc1 {[%emt 0:06:19]} Bc6 {[%emt 0:03:23]} 24. Ne2 {[%emt 0:17:05]} Qb7 {[%emt 0:27:20][%cal Rc5e4]} 25. b4 {[%emt 0:02:55]} (25. Nc3 $11 {was preferrable.}) 25... Nxa4 $15 {[%emt 0:00:19]} (25... Nxe4 $2 26. b5 Nxd2 27. Bxc6 $18) 26. Nd4 {[%emt 0:00:36]} Bd7 {[%emt 0:00:36]} 27. Nb3 {[%emt 0:03:03]} Qc7 {[%emt 0:01:38]} 28. Be2 $1 {[%emt 0:00:32]} Qa7 {[%emt 0:01:29]} 29. Qd3 {[%emt 0:01:08]} Rfd8 {[%emt 0:02:36]} (29... Be5 $15) 30. Bg5 {[%emt 0:01:00]} Re8 $1 {[%emt 0:00:32][%cal Od6d5]} 31. Be3 {[%emt 0:03:42]} (31. Qe3 $15) 31... Red8 {[%emt 0:04:21]} 32. Bg5 {[%emt 0:03:23]} Re8 {[%emt 0:00:14]} 33. Be3 $1 {[%emt 0:05:13]} Red8 {[%emt 0:00:44]} ({Better is} 33... d5 $17 {White must now prevent ...dxc4.} 34. Qd2 (34. exd5 exd5 35. Nd4 dxc4 $17) (34. cxd5 Bb5 $17) 34... dxc4 35. Bxc4 Bb5 36. Bxb5 axb5) 34. Bg5 $1 {Weighted Error Value: White=0.11 (very precise) /Black=0.13 (very precise)} 1/2-1/2

[Event "Czech Open-GM 2022"]
[Site "Pardubice"]
[Date "2022.07.28"]
[Round "7.23"]
[White "Dubinski, Mateusz"]
[Black "Smith, Bryan"]
[Result "0-1"]
[ECO "E62"]
[WhiteElo "2206"]
[BlackElo "2421"]
[Annotator "TA"]
[PlyCount "66"]
[EventDate "2022.07.22"]
[EventType "swiss"]
[EventCountry "CZE"]
[SourceTitle "playchess.com"]
[Source "ChessBase"]
[SourceQuality "1"]
[TimeControl "40/5400+30:1800+30"]

{[%evp 14,66,53,2,27,24,25,22,54,44,62,25,68,65,88,92,106,82,101,99,97,-46,-34,-44,-58,-47,-9,-22,-24,-18,-7,-20,0,5,41,-6,7,19,20,20,17,-64,-52,-291,-285,-369,-362,-475,-481,-914,-889,-906,-912,-29995,-29996]} 1. d4 {[%emt 0:00:03] Primel,D} Nf6 {[%emt 0:00:27]} 2. Nf3 {[%emt 0:00:13]} g6 {[%emt 0:00:29]} 3. g3 {[%emt 0:00:20]} Bg7 {[%emt 0:01:02]} 4. Bg2 {[%emt 0:00:10]} O-O {[%emt 0:00:13]} 5. c4 {[%emt 0:01:55]} d6 {[%emt 0:00:31]} 6. Nc3 {[%emt 0:00:10]} Nc6 {[%emt 0:02:11]} 7. O-O {[%emt 0:00:35]} e5 {[%emt 0:00:20] seems to push 7...a6 aside.} 8. h3 {[%emt 0:13:02]} (8. d5 $14 Ne7 9. e4) 8... Bf5 {[%emt 0:19:19] E62: King's Indian: Fianchetto: 6...c6 and Panno Variation (6...Nc6) without ...a6.} 9. d5 {[%emt 0:02:34]} Ne7 {[%emt 0:01:46]} 10. Ne1 {[%emt 0:05:41] [#]} Qc8 $146 {[%emt 0:08:30] The position is equal.} ({Predecessor:} 10... Bd7 11. e4 Nh5 12. Nd3 f5 13. c5 Nf6 14. Qb3 Kh8 15. f3 Nh5 16. Ne2 Bf6 {1-0 (33) Onkoud,A (2401)-Rousset,N (2106) Issy les Moulineaux 2007 EXT 2008 [Primel,D]}) 11. Kh2 {[%emt 0:00:43]} e4 {[%emt 0:01:52]} 12. Nc2 {[%emt 0:03:36]} h5 {[%emt 0:01:56]} 13. Bg5 {[%emt 0:02:54]} Re8 {[%emt 0:01:42]} 14. Qd2 {[%emt 0:02:47]} Nh7 {[%emt 0:04:00]} 15. Be3 {[%emt 0:10:13]} Bd7 {[%emt 0:06:20]} 16. Bd4 {[%emt 0:11:02]} Nf6 {[%emt 0:02:40]} 17. Qg5 {[%emt 0:05:29] [#]} (17. Bxf6 $16 Bxf6 18. Nxe4) 17... Nf5 $1 $15 {[%emt 0:07:51]} 18. Rad1 {[%emt 0:04:01]} ({Much worse is} 18. Bxf6 Bh6 19. Nxe4 Bxg5 20. Bxg5 Kg7 $17) (18. Qd2 Nxd4) 18... Nxd4 {[%emt 0:07:26]} 19. Nxd4 {[%emt 0:01:10]} Re5 {[%emt 0:05:35]} 20. Qc1 {[%emt 0:03:49]} Qe8 {[%emt 0:00:36]} 21. f4 {[%emt 0:00:18]} exf3 {[%emt 0:03:08]} 22. exf3 h4 {Threatens to win with ...hxg3+.} 23. g4 {[%emt 0:00:37]} g5 {[%emt 0:04:56][%cal Bg6g5,Bg5f4,Bf4e3,Be3e2][%mdl 32]} 24. Rde1 {[%emt 0:05:32]} (24. f4 $14 gxf4 25. Qxf4) 24... c5 {[%emt 0:01:33]} 25. f4 gxf4 {[%emt 0:01:23]} 26. Nf3 {[%emt 0:13:41]} Re3 {[%emt 0:02:05]} 27. Rxe3 {[%emt 0:02:05]} (27. Nd1 $11 Re4 28. b3) 27... fxe3 {[%emt 0:03:17]} 28. Nxh4 $2 {[%emt 0:01:18] White does not recover from this.} (28. Re1 $1 $15) 28... Qe5+ $19 {[%emt 0:01:15]} ({Avoid the trap} 28... e2 $2 29. Rg1 Qe5+ 30. Kh1 $19) 29. Kh1 {[%emt 0:00:12]} e2 {[%emt 0:01:33]} 30. Re1 {[%emt 0:01:54]} Bxg4 {[%emt 0:00:29]} ({Not} 30... Qg3 31. Nf3 $14) 31. Nf3 {[%emt 0:01:36]} (31. Nxe2 $142 Qh5 32. Nf5 Qxf5 33. Ng3) 31... Bxf3 {[%emt 0:02:53]} 32. Bxf3 {[%emt 0:00:02]} Qg3 $1 {[%emt 0:00:36][%csl LRf3,LRh3]} 33. Bg2 {[%emt 0:01:00] [#]} Ng4 $1 {[%emt 0:00:36][%mdl 512] Weighted Error Value: White=0.76/Black=0.10 (very precise)} 0-1

[Event "Czech Open-GM 2022"]
[Site "Pardubice"]
[Date "2022.07.28"]
[Round "7.24"]
[White "Smolik, Jachym"]
[Black "Plat, Vojtech"]
[Result "0-1"]
[ECO "B06"]
[WhiteElo "2291"]
[BlackElo "2554"]
[Annotator "TA"]
[PlyCount "102"]
[EventDate "2022.07.22"]
[EventType "swiss"]
[EventCountry "CZE"]
[SourceTitle "playchess.com"]
[Source "ChessBase"]
[SourceQuality "1"]
[TimeControl "40/5400+30:1800+30"]

{[%evp 9,102,31,35,54,43,47,161,0,14,10,8,8,20,0,0,-48,-56,-44,-45,-39,-52,-45,-60,-58,-35,-43,-37,-50,-60,-69,-24,-40,0,0,0,-85,-38,-33,0,-50,0,-25,-12,-28,-37,-33,-30,-67,-70,-119,-108,-158,-129,-206,-119,-117,-114,-117,-118,-140,-129,-141,-134,-129,-128,-176,-96,-93,-79,-83,-105,-394,-387,-326,-308,-429,-413,-405,-397,-447,-408,-1381,-1317,-1631,-1006,-702,-1540,-870,-594,-1922,-1887,-12841,-12842,-12842,-12843]} 1. d4 {[%emt 0:00:02]} g6 {[%emt 0:10:38]} 2. e4 {[%emt 0:00:08]} Bg7 {[%emt 0:00:05]} 3. Be3 {[%emt 0:00:20]} c5 {[%emt 0:01:30]} 4. Nc3 {[%emt 0:00:35]} cxd4 {[%emt 0:00:21]} 5. Bxd4 {[%emt 0:00:08]} Nf6 {[%emt 0:00:14]} 6. e5 {[%emt 0:15:14] B06: Modern Defence.} Nh5 {[%emt 0:03:16]} 7. Nge2 {[%emt 0:13:17]} f6 {[%emt 0:01:31] [#]} (7... f5 $1 $14) 8. f4 $146 {[%emt 0:12:26]} (8. Ng3 $1 $18 {[%cal Rg3h5]} Nf4 9. exf6 exf6 10. Bc5) ({Predecessor:} 8. Ng3 Nxg3 9. exf6 Nxh1 10. fxg7 Rg8 11. Bc4 e6 12. Ne4 d5 13. Nf6+ Kf7 14. Qf3 Rxg7 15. Nxh7+ {1-0 (28) Dionisi,T (2406)-Ghanbari,R (2222) Chess.com INT 2018}) 8... fxe5 $1 $11 {[%emt 0:01:16]} 9. fxe5 {[%emt 0:03:05]} O-O {[%emt 0:02:28]} 10. Qd2 {[%emt 0:00:45]} e6 {[%emt 0:03:12]} 11. O-O-O {[%emt 0:01:25]} Nc6 {[%emt 0:00:12][%cal Bb8c6,Bc6e5,Be5g4,Bg4e3][%mdl 32]} 12. Bc5 {[%emt 0:03:57] [#]} (12. Qe3 $11) 12... Nxe5 $1 $15 {[%emt 0:00:07] And now ...Nc4 would win.} 13. Bxf8 {[%emt 0:01:05]} Qxf8 {[%emt 0:00:03]} 14. Qd6 {[%emt 0:02:04]} Ng4 {[%emt 0:01:26]} 15. Ne4 {[%emt 0:05:33]} Qxd6 {[%emt 0:00:06]} 16. Rxd6 {[%emt 0:01:27]} Bf8 {[%emt 0:01:16][%cal Og4f2]} 17. Rd4 {[%emt 0:03:18]} d5 {[%emt 0:00:55][%mdl 1024] Black has compensation.} 18. h3 $1 {[%emt 0:00:43]} Ne3 {[%emt 0:00:06] ...e5 is the strong threat.} 19. Nd2 {[%emt 0:08:01]} e5 {[%emt 0:09:48]} 20. Rd3 {[%emt 0:00:05]} Bh6 {[%emt 0:00:32] Threatens to win with ...Bf5.} 21. g4 {[%emt 0:01:02] Inhibits Bf5.} Nf6 {[%emt 0:00:22]} 22. Kb1 {[%emt 0:04:39] [#]} (22. Rg1 $1 $11 {remains equal.} Nxf1 23. Rxf1) 22... e4 {[%emt 0:07:45] Black is more active.} (22... b6 $1 $17 23. Rg1 e4) 23. Rd4 {[%emt 0:00:39]} Be6 {[%emt 0:00:49]} 24. Nc3 {[%emt 0:01:51]} (24. Rb4 $11) 24... Bg7 {[%emt 0:01:33]} (24... Rc8 $15) 25. Nb3 {[%emt 0:01:18]} (25. Rb4 $5 {[%cal Rb4b7]}) 25... h5 {[%emt 0:00:28]} 26. Be2 {[%emt 0:02:26]} hxg4 {[%emt 0:01:06]} 27. hxg4 {[%emt 0:00:06]} Nfxg4 {[%emt 0:01:26]} 28. Rb4 {[%emt 0:00:59]} b6 $1 {[%emt 0:00:04]} 29. Nb5 {[%emt 0:03:18]} ({White should play} 29. Nd4 $15 Bd7 30. Bb5) 29... Bd7 $17 {[%emt 0:06:15] Hoping for ...a5. This bishop pair is nice.} 30. N3d4 {[%emt 0:02:55]} ({Better is} 30. Bxg4 Bxg4 31. N3d4) 30... Be5 {[%emt 0:00:10]} 31. c3 {[%emt 0:03:00]} (31. a4 $17) 31... a6 {[%emt 0:02:52]} (31... Nf2 $19 32. Rg1 Kg7) 32. Na3 {[%emt 0:00:09]} b5 {[%emt 0:00:07]} 33. Nac2 {[%emt 0:03:38]} Bd6 {[%emt 0:00:26]} 34. Bxg4 {[%emt 0:01:47]} Nxg4 {[%emt 0:00:09]} 35. Rb3 {[%emt 0:00:05]} Ne5 {[%emt 0:03:32]} 36. Nb4 {[%emt 0:05:12]} Nc4 {[%emt 0:00:10]} 37. Rd1 {[%emt 0:00:49] Prevents Nd2+.} (37. Nxd5 $17 {might work better.} Rf8 38. Kc1) 37... Bxb4 {[%emt 0:00:30]} ({Worse is} 37... Bg4 38. Rg1 Nd2+ 39. Kc2 Nxb3 40. Kxb3 Bxb4 41. Rxg4 $17) ({Black should try} 37... Kg7 $19 {White must now prevent ...e3.} 38. Nxd5 e3) 38. Rxb4 {[%emt 0:01:08]} Rf8 {[%emt 0:00:03] aiming for ...Rf2.} 39. a4 {[%emt 0:00:43][%cal Ra4b5]} a5 {[%emt 0:02:18]} 40. Rb3 {[%emt 0:00:18][%mdl 8192] [#] White does not recover from this.} (40. Rxb5 $17 Bxb5 41. axb5) 40... b4 $1 $19 {[%emt 0:00:02]} 41. Nb5 {[%emt 0:04:40]} e3 {[%emt 0:00:00][%cal Be4e3,Be3e2][%mdl 32] ( -> ...e2)} 42. Ka2 {[%emt 0:02:29]} e2 {[%emt 0:11:47]} 43. Re1 {[%emt 0:00:08]} Bg4 {[%emt 0:00:18]} 44. Nd4 {[%emt 0:01:15]} Rf1 {[%emt 0:00:04]} 45. Nc2 {[%emt 0:00:06] [#]} (45. Rxe2 $142 Bxe2 46. Nxe2) 45... Ne3 $1 {[%emt 0:02:00][%mdl 512] Black is clearly winning.} 46. Rxe2 {[%emt 0:00:25]} Bxe2 {[%emt 0:00:03]} 47. Nxe3 {[%emt 0:00:10] KRB-KRN} Rf3 {[%emt 0:00:01]} 48. cxb4 {[%emt 0:01:08]} axb4 {[%emt 0:00:40]} 49. a5 {[%emt 0:00:35]} d4 {[%emt 0:00:05]} 50. Nc2 {[%emt 0:00:05]} Bc4 {[%emt 0:00:07]} 51. Nxd4 {[%emt 0:00:04]} Rd3 {Weighted Error Value: White=0.59/Black=0.19 (very precise)} 0-1

[Event "Czech Open-GM 2022"]
[Site "Pardubice"]
[Date "2022.07.28"]
[Round "7.25"]
[White "Akesson, Ralf"]
[Black "Kulon, Klaudia"]
[Result "1/2-1/2"]
[ECO "E92"]
[WhiteElo "2427"]
[BlackElo "2286"]
[Annotator "TA"]
[PlyCount "61"]
[EventDate "2022.07.22"]
[EventType "swiss"]
[EventCountry "CZE"]
[SourceTitle "playchess.com"]
[Source "ChessBase"]
[SourceQuality "1"]
[TimeControl "40/5400+30:1800+30"]

{[%evp 27,61,36,24,22,39,29,19,0,35,23,48,16,47,11,26,16,20,13,20,21,12,18,25,25,22,17,22,0,0,0,0,0,0,0,0,0]} 1. Nf3 {[%emt 0:02:55]} Nf6 {[%emt 0:02:31]} 2. c4 {[%emt 0:00:23]} g6 {[%emt 0:00:05]} 3. Nc3 {[%emt 0:00:13]} Bg7 {[%emt 0:00:08]} 4. e4 {[%emt 0:00:15]} d6 {[%emt 0:00:06]} 5. d4 {[%emt 0:00:10]} O-O {[%emt 0:00:06]} 6. Be3 {[%emt 0:01:13]} e5 {[%emt 0:01:25]} 7. Be2 {[%emt 0:01:43]} exd4 {[%emt 0:00:06]} 8. Nxd4 {[%emt 0:00:10]} Re8 {[%emt 0:00:05]} 9. f3 {[%emt 0:00:22]} c6 {[%emt 0:00:05]} 10. Bf2 {[%emt 0:00:43]} d5 {[%emt 0:00:29]} 11. exd5 {[%emt 0:00:36]} cxd5 {[%emt 0:00:05]} 12. O-O {[%emt 0:00:49]} Nc6 {[%emt 0:01:33]} 13. c5 {[%emt 0:01:13]} Nh5 {[%emt 0:07:20]} 14. Qd2 {[%emt 0:01:10]} Be5 {[%emt 0:01:45] Threatens to win with ...Nf4.} 15. g3 {[%emt 0:01:10] Inhibits Nf4. E92: King's Indian: Classical: 6 Be2 e5: 7 dxe5, 7 Be3 and Petrosian System without 7...Nbd7.} Bh3 {[%emt 0:05:46]} 16. Rfd1 {[%emt 0:03:18] was the old line (16.Rfe1).} a6 {[%emt 0:01:43] [#]} 17. Rac1 $146 {[%emt 0:06:09]} ({Predecessor:} 17. f4 Bg7 18. Bf3 Nf6 19. Nxc6 bxc6 20. Bd4 Ng4 21. Re1 Qa5 22. Bxg7 Kxg7 23. Qd4+ {1-0 (48) Shao,B-Finneran,M (2024) Irvine 2010}) 17... Ng7 {[%emt 0:05:54]} 18. Nb3 {[%emt 0:10:13]} Be6 {[%emt 0:05:27]} 19. Bf1 {[%emt 0:03:57]} (19. f4 $5 {[%cal Rf4e5]} Bxc3 20. Qxc3 $14) 19... a5 {[%emt 0:03:39]} 20. Nb5 {[%emt 0:12:56]} ({Much worse is} 20. Nxd5 a4 21. Na1 Bxd5 22. Qxd5 Qf6 $11) 20... Nf5 {[%emt 0:06:13]} 21. N3d4 {[%emt 0:02:38]} Nfxd4 {[%emt 0:05:30]} 22. Nxd4 {[%emt 0:04:09]} Qf6 {[%emt 0:00:36]} 23. f4 {[%emt 0:03:43]} Bxd4 {[%emt 0:00:14]} 24. Bxd4 {[%emt 0:00:07]} Nxd4 {[%emt 0:00:08]} 25. Qxd4 {[%emt 0:00:06]} Qxd4+ {[%emt 0:00:19]} 26. Rxd4 {[%emt 0:00:08] The position is equal.} Rec8 {[%emt 0:00:09]} 27. Rc3 {[%emt 0:17:24]} Rc7 {[%emt 0:03:48]} 28. Ra4 {[%emt 0:10:10]} Bd7 {[%emt 0:02:41]} 29. Rd4 {[%emt 0:01:40]} Be6 {[%emt 0:00:05]} 30. Ra4 {[%emt 0:00:52]} Bd7 {[%emt 0:00:30]} 31. Rd4 {[%emt 0:00:06] Weighted Error Value: White=0.10 (very precise) /Black=0.06 (flawless)} 1/2-1/2